[Event "ROU-ch Open 2021"]
[Site "Iasi"]
[Date "2021.04.19"]
[Round "1.8"]
[White "Chiheri, Alexandru-Virgil"]
[Black "Nevednichy, Vladislav"]
[Result "0-1"]
[ECO "B80"]
[WhiteElo "1921"]
[BlackElo "2533"]
[Annotator "ChessBase"]
[PlyCount "62"]
[EventDate "2021.04.19"]
[EventType "swiss"]
[EventCountry "ROU"]
[SourceTitle "playchess.com"]
[Source "ChessBase"]
[SourceQuality "1"]
[TimeControl "5400+30"]

1. e4 {[%emt 0:00:00]} c5 {[%emt 0:00:00]} 2. Nf3 {[%emt 0:00:00]} d6 {[%emt 0:00:00]} 3. d4 {[%emt 0:00:18]} cxd4 {[%emt 0:00:00]} 4. Nxd4 {[%emt 0:00:08]} Nf6 {[%emt 0:00:00]} 5. Nc3 {[%emt 0:00:08]} Nc6 {[%emt 0:00:00]} 6. f3 {[%emt 0:00:21]} e6 {[%emt 0:00:17]} 7. Be3 {[%emt 0:01:12]} a6 {[%emt 0:00:06]} 8. Qd2 {[%emt 0:02:07]} h5 {[%emt 0:00:55]} 9. O-O-O {[%emt 0:01:39]} Bd7 {[%emt 0:00:12]} 10. Be2 {[%emt 0:03:22]} b5 {[%emt 0:03:04]} 11. Nxc6 {[%emt 0:21:35]} Bxc6 {[%emt 0:00:10]} 12. Bd3 {[%emt 0:00:32]} Be7 {[%emt 0:01:55]} 13. Qf2 {[%emt 0:03:26]} Qb8 {[%emt 0:03:59]} 14. Rhe1 {[%emt 0:04:08]} b4 {[%emt 0:00:14]} 15. Ne2 {[%emt 0:00:18]} a5 {[%emt 0:00:27]} 16. Nd4 {[%emt 0:02:21]} Bd7 {[%emt 0:00:14]} 17. g3 {[%emt 0:09:25]} a4 {[%emt 0:00:18]} 18. Kb1 {[%emt 0:00:31]} e5 {[%emt 0:05:17]} 19. Ne2 {[%emt 0:00:50]} Be6 {[%emt 0:01:02]} 20. Nc1 {[%emt 0:01:33]} O-O {[%emt 0:00:45]} 21. h3 {[%emt 0:05:38]} d5 {[%emt 0:10:33]} 22. g4 {[%emt 0:01:56]} d4 {[%emt 0:00:11]} 23. Bg5 {[%emt 0:01:39]} Nxg4 {[%emt 0:02:53]} 24. hxg4 {[%emt 0:03:30]} Bxg5 {[%emt 0:01:22]} 25. gxh5 {[%emt 0:03:25]} Qd8 {[%emt 0:00:00]} 26. Rh1 {[%emt 0:04:03]} Ra7 {[%emt 0:00:51]} 27. Qg2 {[%emt 0:00:46]} Bh6 {[%emt 0:01:35]} 28. Rdg1 {[%emt 0:01:04]} Qf6 {[%emt 0:00:43]} 29. Qe2 {[%emt 0:05:33]} Rc8 {[%emt 0:00:52]} 30. Rg2 {[%emt 0:00:55]} Be3 {[%emt 0:01:27]} 31. Ba6 {[%emt 0:03:29]} Rxa6 {[%emt 0:00:45]} 0-1

[Event "ROU-ch Open 2021"]
[Site "Iasi"]
[Date "2021.04.19"]
[Round "1.9"]
[White "Jianu, Vlad-Cristian"]
[Black "Sachilaru, Alexandru"]
[Result "1-0"]
[ECO "E76"]
[WhiteElo "2532"]
[BlackElo "1917"]
[Annotator "ChessBase"]
[PlyCount "77"]
[EventDate "2021.04.19"]
[EventType "swiss"]
[EventCountry "ROU"]
[SourceTitle "playchess.com"]
[Source "ChessBase"]
[SourceQuality "1"]
[TimeControl "5400+30"]

1. d4 {[%emt 0:00:00]} Nf6 {[%emt 0:00:00]} 2. c4 {[%emt 0:00:00]} g6 {[%emt 0:00:00]} 3. Nc3 {[%emt 0:00:13]} Bg7 {[%emt 0:00:00]} 4. e4 {[%emt 0:00:14]} d6 {[%emt 0:00:03]} 5. f4 {[%emt 0:00:05]} O-O {[%emt 0:00:17]} 6. Nf3 {[%emt 0:00:05]} c5 {[%emt 0:01:33]} 7. dxc5 {[%emt 0:00:06]} Qa5 {[%emt 0:01:16]} 8. Bd3 {[%emt 0:00:06]} Qxc5 {[%emt 0:00:40]} 9. Qe2 {[%emt 0:00:06]} a6 {[%emt 0:09:03]} 10. Be3 {[%emt 0:00:15]} Qc7 {[%emt 0:00:31]} 11. O-O {[%emt 0:00:32]} Bg4 {[%emt 0:01:37]} 12. Rac1 {[%emt 0:00:12]} Nbd7 {[%emt 0:01:09]} 13. Kh1 {[%emt 0:01:15]} Rac8 {[%emt 0:08:04]} 14. b3 {[%emt 0:05:49]} Qb8 {[%emt 0:08:08]} 15. h3 {[%emt 0:06:49]} Bxf3 {[%emt 0:00:08]} 16. Qxf3 {[%emt 0:00:48]} Nc5 {[%emt 0:02:28]} 17. Bb1 {[%emt 0:00:47]} b5 {[%emt 0:13:03]} 18. cxb5 {[%emt 0:11:20]} axb5 {[%emt 0:00:00]} 19. Bg1 {[%emt 0:04:32]} b4 {[%emt 0:00:00]} 20. Ne2 {[%emt 0:01:23]} Ncd7 {[%emt 0:06:25]} 21. Rcd1 {[%emt 0:11:05]} Qb7 {[%emt 0:07:53]} 22. Rd4 {[%emt 0:01:00]} Rc7 {[%emt 0:08:30]} 23. Rfd1 {[%emt 0:03:34]} Nc5 {[%emt 0:15:34]} 24. Rc4 {[%emt 0:24:27]} Ncd7 {[%emt 0:02:34]} 25. Rxc7 {[%emt 0:02:01]} Qxc7 {[%emt 0:00:04]} 26. Rc1 {[%emt 0:00:08]} Qb8 {[%emt 0:00:37]} 27. Nd4 {[%emt 0:00:41]} e5 {[%emt 0:02:19]} 28. Nc6 {[%emt 0:00:06]} Qb7 {[%emt 0:00:26]} 29. Qd1 {[%emt 0:08:36]} Re8 {[%emt 0:01:41]} 30. Qxd6 {[%emt 0:02:15]} Bf8 {[%emt 0:00:55]} 31. Qd2 {[%emt 0:00:58]} exf4 {[%emt 0:00:44]} 32. Qxf4 {[%emt 0:02:45]} Nh5 {[%emt 0:00:55]} 33. Qf3 {[%emt 0:01:12]} Bd6 {[%emt 0:01:57]} 34. g4 {[%emt 0:01:27]} Ng3+ {[%emt 0:01:33]} 35. Kg2 {[%emt 0:00:04]} Rc8 {[%emt 0:00:46]} 36. Na5 {[%emt 0:03:39]} Qa8 {[%emt 0:03:34]} 37. Rxc8+ {[%emt 0:00:06]} Qxc8 {[%emt 0:00:09]} 38. Nc4 {[%emt 0:00:05]} Bb8 {[%emt 0:00:26]} 39. Bf2 {[%emt 0:00:21]} 1-0

[Event "ROU-ch Open 2021"]
[Site "Iasi"]
[Date "2021.04.19"]
[Round "1.10"]
[White "Prisacaru, Stefan-Emilian"]
[Black "Nanu, Costica-Ciprian"]
[Result "0-1"]
[ECO "A07"]
[WhiteElo "1913"]
[BlackElo "2503"]
[Annotator "ChessBase"]
[PlyCount "102"]
[EventDate "2021.04.19"]
[EventType "swiss"]
[EventCountry "ROU"]
[SourceTitle "playchess.com"]
[Source "ChessBase"]
[SourceQuality "1"]
[TimeControl "5400+30"]

1. g3 {[%emt 0:03:25]} d5 {[%emt 0:00:16]} 2. Bg2 {[%emt 0:00:13]} c6 {[%emt 0:00:09]} 3. d3 {[%emt 0:00:07]} Nf6 {[%emt 0:00:14]} 4. Nd2 {[%emt 0:00:19]} Bg4 {[%emt 0:00:07]} 5. Ngf3 {[%emt 0:06:02]} Nbd7 {[%emt 0:00:18]} 6. O-O {[%emt 0:02:36]} e5 {[%emt 0:00:43]} 7. e4 {[%emt 0:00:52]} Bd6 {[%emt 0:00:24]} 8. c3 {[%emt 0:07:11]} O-O {[%emt 0:01:03]} 9. Qc2 {[%emt 0:00:24]} Re8 {[%emt 0:00:39]} 10. Re1 {[%emt 0:04:16]} a5 {[%emt 0:00:50]} 11. Nf1 {[%emt 0:05:10]} Nc5 {[%emt 0:03:20]} 12. Nxe5 {[%emt 0:16:28]} Bxe5 {[%emt 0:01:06]} 13. d4 {[%emt 0:00:02]} dxe4 {[%emt 0:01:38]} 14. dxc5 {[%emt 0:00:33]} a4 {[%emt 0:13:43]} 15. Bg5 {[%emt 0:01:58]} Qd3 {[%emt 0:02:29]} 16. Bxe4 {[%emt 0:04:08]} Qxc2 {[%emt 0:00:15]} 17. Bxc2 {[%emt 0:00:03]} a3 {[%emt 0:00:09]} 18. Bc1 {[%emt 0:01:14]} Nd7 {[%emt 0:03:42]} 19. Ne3 {[%emt 0:13:01]} Bf3 {[%emt 0:01:01]} 20. Nc4 {[%emt 0:09:04]} Bxc3 {[%emt 0:01:18]} 21. Rxe8+ {[%emt 0:00:02]} Rxe8 {[%emt 0:00:07]} 22. Be3 {[%emt 0:00:07]} axb2 {[%emt 0:00:16]} 23. Rb1 {[%emt 0:00:17]} Bd5 {[%emt 0:00:33]} 24. Nxb2 {[%emt 0:02:14]} Bxa2 {[%emt 0:00:42]} 25. Ra1 {[%emt 0:00:49]} Bd5 {[%emt 0:00:19]} 26. Rb1 {[%emt 0:01:00]} Ne5 {[%emt 0:00:11]} 27. Na4 {[%emt 0:09:42]} Nf3+ {[%emt 0:00:17]} 28. Kf1 {[%emt 0:00:02]} Bd4 {[%emt 0:03:22]} 29. Bxd4 {[%emt 0:03:49]} Nd2+ {[%emt 0:00:27]} 30. Kg1 {[%emt 0:00:37]} Nxb1 {[%emt 0:00:06]} 31. Be3 {[%emt 0:00:28]} Na3 {[%emt 0:00:27]} 32. Bd3 {[%emt 0:01:18]} Nc4 {[%emt 0:00:29]} 33. Bxc4 {[%emt 0:00:14]} Bxc4 {[%emt 0:00:25]} 34. Nb6 {[%emt 0:00:24]} Bd5 {[%emt 0:00:22]} 35. Kf1 {[%emt 0:00:15]} Bf3 {[%emt 0:00:16]} 36. Nc4 {[%emt 0:00:46]} Ra8 {[%emt 0:00:25]} 37. Ke1 {[%emt 0:00:15]} Ra2 {[%emt 0:00:17]} 38. Nd6 {[%emt 0:01:40]} Re2+ {[%emt 0:00:27]} 39. Kf1 {[%emt 0:00:06]} f6 {[%emt 0:01:23]} 40. Nf5 {[%emt 0:01:46]} Rb2 {[%emt 0:00:30]} 41. Ke1 {[%emt 0:00:10]} Kf7 {[%emt 0:00:46]} 42. Bd4 {[%emt 0:01:12]} Re2+ {[%emt 0:00:11]} 43. Kf1 {[%emt 0:00:03]} Rd2 {[%emt 0:00:13]} 44. Bc3 {[%emt 0:00:53]} Rc2 {[%emt 0:00:17]} 45. Nd6+ {[%emt 0:00:54]} Ke6 {[%emt 0:00:25]} 46. Bb4 {[%emt 0:00:46]} b5 {[%emt 0:01:27]} 47. Nb7 {[%emt 0:00:38]} Kd5 {[%emt 0:00:38]} 48. h4 {[%emt 0:01:30]} h5 {[%emt 0:00:33]} 49. Ba5 {[%emt 0:00:51]} Rc1+ {[%emt 0:00:39]} 50. Be1 {[%emt 0:00:02]} b4 {[%emt 0:00:10]} 51. Na5 {[%emt 0:00:08]} Rb1 {[%emt 0:00:15]} 0-1

[Event "ROU-ch Open 2021"]
[Site "Iasi"]
[Date "2021.04.19"]
[Round "1.11"]
[White "Gavrilescu, David"]
[Black "Negrean, Andrei"]
[Result "1-0"]
[ECO "B42"]
[WhiteElo "2476"]
[BlackElo "1904"]
[Annotator "ChessBase"]
[PlyCount "49"]
[EventDate "2021.04.19"]
[EventType "swiss"]
[EventCountry "ROU"]
[SourceTitle "playchess.com"]
[Source "ChessBase"]
[SourceQuality "1"]
[TimeControl "5400+30"]

1. e4 {[%emt 0:00:00]} c5 {[%emt 0:00:00]} 2. Nf3 {[%emt 0:00:00]} d6 {[%emt 0:00:00]} 3. d4 {[%emt 0:00:51]} Nf6 {[%emt 0:03:19]} 4. Nc3 {[%emt 0:01:02]} cxd4 {[%emt 0:00:17]} 5. Nxd4 {[%emt 0:00:08]} a6 {[%emt 0:00:11]} 6. Bd3 {[%emt 0:00:05]} e6 {[%emt 0:04:52]} 7. O-O {[%emt 0:00:19]} Be7 {[%emt 0:01:29]} 8. f4 {[%emt 0:01:13]} O-O {[%emt 0:02:16]} 9. Qf3 {[%emt 0:04:47]} Qc7 {[%emt 0:03:36]} 10. Be3 {[%emt 0:02:40]} Nbd7 {[%emt 0:05:00]} 11. g4 {[%emt 0:09:17]} b5 {[%emt 0:07:10]} 12. g5 {[%emt 0:02:05]} Ne8 {[%emt 0:00:25]} 13. Qh5 {[%emt 0:02:35]} Bb7 {[%emt 0:08:20]} 14. Rf3 {[%emt 0:02:51]} Nc5 {[%emt 0:09:21]} 15. Rh3 {[%emt 0:04:13]} h6 {[%emt 0:00:55]} 16. f5 {[%emt 0:03:51]} b4 {[%emt 0:10:53]} 17. gxh6 {[%emt 0:04:14]} Nf6 {[%emt 0:03:29]} 18. Qg5 {[%emt 0:02:41]} Ne8 {[%emt 0:00:40]} 19. Qg4 {[%emt 0:01:31]} bxc3 {[%emt 0:05:41]} 20. hxg7 {[%emt 0:00:22]} Nxg7 {[%emt 0:00:14]} 21. Bh6 {[%emt 0:00:11]} Bf6 {[%emt 0:00:32]} 22. Bxg7 {[%emt 0:00:05]} Bxg7 {[%emt 0:00:11]} 23. f6 {[%emt 0:00:02]} Rfc8 {[%emt 0:01:59]} 24. Rh8+ {[%emt 0:00:13]} Kxh8 {[%emt 0:00:12]} 25. Qxg7# {[%emt 0:00:04]} 1-0

[Event "ROU-ch Open 2021"]
[Site "Iasi"]
[Date "2021.04.19"]
[Round "1.12"]
[White "Sarighioleanu, Sebastian-Laurentiu"]
[Black "Filip, Lucian-Ioan"]
[Result "0-1"]
[ECO "E12"]
[WhiteElo "1902"]
[BlackElo "2442"]
[Annotator "ChessBase"]
[PlyCount "58"]
[EventDate "2021.04.19"]
[EventType "swiss"]
[EventCountry "ROU"]
[SourceTitle "playchess.com"]
[Source "ChessBase"]
[SourceQuality "1"]
[TimeControl "5400+30"]

1. d4 {[%emt 0:00:00]} e6 {[%emt 0:00:00]} 2. c4 {[%emt 0:00:15]} Nf6 {[%emt 0:01:34]} 3. Nf3 {[%emt 0:00:16]} b6 {[%emt 0:01:05]} 4. a3 {[%emt 0:01:10]} Bb7 {[%emt 0:02:27]} 5. Nc3 {[%emt 0:00:11]} Ne4 {[%emt 0:07:33]} 6. Qc2 {[%emt 0:05:22]} Nxc3 {[%emt 0:01:56]} 7. Qxc3 {[%emt 0:00:54]} Be7 {[%emt 0:04:04]} 8. g3 {[%emt 0:11:46]} a5 {[%emt 0:06:22]} 9. b3 {[%emt 0:02:42]} c5 {[%emt 0:04:18]} 10. Bb2 {[%emt 0:06:02]} Bf6 {[%emt 0:02:46]} 11. Qd2 {[%emt 0:05:49]} Bxf3 {[%emt 0:02:48]} 12. exf3 {[%emt 0:00:07]} Nc6 {[%emt 0:00:40]} 13. dxc5 {[%emt 0:14:48]} bxc5 {[%emt 0:00:17]} 14. Rd1 {[%emt 0:10:26]} Bxb2 {[%emt 0:04:00]} 15. Qxb2 {[%emt 0:00:06]} Nd4 {[%emt 0:15:42]} 16. Bg2 {[%emt 0:02:34]} Qf6 {[%emt 0:02:51]} 17. Qd2 {[%emt 0:07:52]} Qe5+ {[%emt 0:02:41]} 18. Kf1 {[%emt 0:01:45]} Rb8 {[%emt 0:00:09]} 19. f4 {[%emt 0:08:30]} Qc7 {[%emt 0:00:40]} 20. b4 {[%emt 0:05:02]} axb4 {[%emt 0:02:12]} 21. axb4 {[%emt 0:00:06]} Rxb4 {[%emt 0:00:13]} 22. Qc3 {[%emt 0:09:33]} O-O {[%emt 0:03:00]} 23. Be4 {[%emt 0:00:15]} Rb3 {[%emt 0:04:06]} 24. Qd2 {[%emt 0:03:11]} f5 {[%emt 0:00:15]} 25. Bg2 {[%emt 0:01:15]} Rfb8 {[%emt 0:00:07]} 26. h4 {[%emt 0:00:53]} Rb2 {[%emt 0:00:10]} 27. Qc1 {[%emt 0:02:01]} Qa5 {[%emt 0:06:34]} 28. Re1 {[%emt 0:00:34]} Qa2 {[%emt 0:01:13]} 29. Qe3 {[%emt 0:00:29]} R8b3 {[%emt 0:00:08]} 0-1

[Event "ROU-ch Open 2021"]
[Site "Iasi"]
[Date "2021.04.19"]
[Round "1.13"]
[White "Baratosi, Daniel"]
[Black "Nechita, Vlad-Mihai"]
[Result "1-0"]
[ECO "B12"]
[WhiteElo "2355"]
[BlackElo "1893"]
[Annotator "ChessBase"]
[PlyCount "53"]
[EventDate "2021.04.19"]
[EventType "swiss"]
[EventCountry "ROU"]
[SourceTitle "playchess.com"]
[Source "ChessBase"]
[SourceQuality "1"]
[TimeControl "5400+30"]

1. e4 {[%emt 0:00:00]} c6 {[%emt 0:00:00]} 2. d4 {[%emt 0:00:03]} d5 {[%emt 0:00:00]} 3. e5 {[%emt 0:01:36]} Bf5 {[%emt 0:00:00]} 4. h4 {[%emt 0:00:20]} h5 {[%emt 0:00:05]} 5. Bg5 {[%emt 0:01:53]} Qb6 {[%emt 0:00:43]} 6. Bd3 {[%emt 0:00:04]} Bxd3 {[%emt 0:00:19]} 7. Qxd3 {[%emt 0:00:04]} e6 {[%emt 0:01:52]} 8. Nd2 {[%emt 0:02:02]} Ne7 {[%emt 0:06:13]} 9. Ngf3 {[%emt 0:11:15]} Nf5 {[%emt 0:02:31]} 10. O-O {[%emt 0:04:39]} c5 {[%emt 0:10:03]} 11. c4 {[%emt 0:05:26]} Qa6 {[%emt 0:05:02]} 12. dxc5 {[%emt 0:21:30]} Nc6 {[%emt 0:13:52]} 13. a3 {[%emt 0:06:35]} Bxc5 {[%emt 0:08:48]} 14. b4 {[%emt 0:02:35]} dxc4 {[%emt 0:01:19]} 15. Qb1 {[%emt 0:22:03]} c3 {[%emt 0:08:52]} 16. Ne4 {[%emt 0:02:15]} c2 {[%emt 0:01:48]} 17. Qxc2 {[%emt 0:01:08]} Bd4 {[%emt 0:07:25]} 18. Rab1 {[%emt 0:10:33]} b5 {[%emt 0:22:03]} 19. Nd6+ {[%emt 0:02:44]} Nxd6 {[%emt 0:00:07]} 20. exd6 {[%emt 0:00:03]} f6 {[%emt 0:03:33]} 21. Qg6+ {[%emt 0:01:38]} Kf8 {[%emt 0:00:02]} 22. Nxd4 {[%emt 0:01:26]} Nxd4 {[%emt 0:00:09]} 23. Bxf6 {[%emt 0:00:07]} Nf5 {[%emt 0:04:10]} 24. Be7+ {[%emt 0:00:51]} Nxe7 {[%emt 0:00:06]} 25. dxe7+ {[%emt 0:00:04]} Kxe7 {[%emt 0:00:10]} 26. Qxg7+ {[%emt 0:00:09]} Kd6 {[%emt 0:00:06]} 27. Rfd1+ {[%emt 0:00:07]} 1-0

[Event "ROU-ch Open 2021"]
[Site "Iasi"]
[Date "2021.04.19"]
[Round "1.14"]
[White "Jugaru, Lucian"]
[Black "Stoleriu, George"]
[Result "0-1"]
[ECO "C02"]
[WhiteElo "1856"]
[BlackElo "2349"]
[Annotator "ChessBase"]
[PlyCount "73"]
[EventDate "2021.04.19"]
[EventType "swiss"]
[EventCountry "ROU"]
[SourceTitle "playchess.com"]
[Source "ChessBase"]
[SourceQuality "1"]
[TimeControl "5400+30"]

1. e4 {[%emt 0:00:00]} e6 {[%emt 0:00:00]} 2. d4 {[%emt 0:00:00]} d5 {[%emt 0:00:00]} 3. e5 {[%emt 0:00:00]} c5 {[%emt 0:00:00]} 4. c3 {[%emt 0:00:00]} Nc6 {[%emt 0:00:00]} 5. Nf3 {[%emt 0:00:00]} Bd7 {[%emt 0:00:00]} 6. Be2 {[%emt 0:01:14]} Nge7 {[%emt 0:00:17]} 7. Na3 {[%emt 0:00:11]} Nf5 {[%emt 0:02:25]} 8. Nc2 {[%emt 0:03:29]} cxd4 {[%emt 0:01:37]} 9. cxd4 {[%emt 0:00:16]} Nb4 {[%emt 0:00:04]} 10. Nxb4 {[%emt 0:17:59]} Bxb4+ {[%emt 0:00:15]} 11. Bd2 {[%emt 0:00:04]} Qb6 {[%emt 0:01:41]} 12. Bxb4 {[%emt 0:00:21]} Qxb4+ {[%emt 0:00:05]} 13. Qd2 {[%emt 0:00:03]} Qb6 {[%emt 0:00:22]} 14. O-O {[%emt 0:07:22]} O-O {[%emt 0:01:08]} 15. Rac1 {[%emt 0:16:30]} Rfc8 {[%emt 0:05:39]} 16. g4 {[%emt 0:01:00]} Ne7 {[%emt 0:03:02]} 17. Rxc8+ {[%emt 0:01:42]} Rxc8 {[%emt 0:00:06]} 18. Rc1 {[%emt 0:00:14]} Nc6 {[%emt 0:01:07]} 19. Bd3 {[%emt 0:06:52]} Qd8 {[%emt 0:02:02]} 20. Kg2 {[%emt 0:10:10]} Rc7 {[%emt 0:02:57]} 21. h4 {[%emt 0:11:12]} Qe7 {[%emt 0:03:46]} 22. g5 {[%emt 0:01:52]} Rc8 {[%emt 0:01:25]} 23. Bb1 {[%emt 0:03:32]} Rf8 {[%emt 0:01:53]} 24. Qd3 {[%emt 0:01:38]} f5 {[%emt 0:00:25]} 25. gxf6 {[%emt 0:04:34]} gxf6 {[%emt 0:00:06]} 26. exf6 {[%emt 0:00:45]} Rxf6 {[%emt 0:00:06]} 27. Rg1 {[%emt 0:02:57]} Be8 {[%emt 0:01:26]} 28. Qe3 {[%emt 0:04:43]} Kh8 {[%emt 0:10:54]} 29. Ne5 {[%emt 0:00:36]} Qc7 {[%emt 0:07:46]} 30. Ng4 {[%emt 0:02:30]} Rf4 {[%emt 0:01:19]} 31. Kf1 {[%emt 0:01:55]} Rf8 {[%emt 0:24:09]} 32. Qxe6 {[%emt 0:01:22]} Qf4 {[%emt 0:03:49]} 33. Qh6 {[%emt 0:00:39]} Qxh6 {[%emt 0:01:03]} 34. Nxh6 {[%emt 0:00:02]} Nxd4 {[%emt 0:00:05]} 35. Rg5 {[%emt 0:00:25]} Bc6 {[%emt 0:02:23]} 36. Bd3 {[%emt 0:01:05]} Ne6 {[%emt 0:06:05]} 37. Rg3 {[%emt 0:01:20]} 0-1

[Event "ROU-ch Open 2021"]
[Site "Iasi"]
[Date "2021.04.19"]
[Round "1.15"]
[White "Ciorgovean, Iustin"]
[Black "Barbu, Simon-Alexandru"]
[Result "1-0"]
[ECO "A52"]
[WhiteElo "2338"]
[BlackElo "1851"]
[Annotator "ChessBase"]
[PlyCount "59"]
[EventDate "2021.04.19"]
[EventType "swiss"]
[EventCountry "ROU"]
[SourceTitle "playchess.com"]
[Source "ChessBase"]
[SourceQuality "1"]
[TimeControl "5400+30"]

1. d4 {[%emt 0:00:00]} Nf6 {[%emt 0:00:00]} 2. c4 {[%emt 0:00:00]} e5 {[%emt 0:00:00]} 3. dxe5 {[%emt 0:00:00]} Ng4 {[%emt 0:00:01]} 4. Bf4 {[%emt 0:00:00]} Nc6 {[%emt 0:00:19]} 5. Nf3 {[%emt 0:00:01]} Bb4+ {[%emt 0:00:16]} 6. Nbd2 {[%emt 0:00:09]} Qe7 {[%emt 0:00:21]} 7. e3 {[%emt 0:01:00]} Ngxe5 {[%emt 0:01:21]} 8. Nxe5 {[%emt 0:01:59]} Nxe5 {[%emt 0:00:01]} 9. Be2 {[%emt 0:01:01]} O-O {[%emt 0:00:52]} 10. O-O {[%emt 0:00:16]} Bxd2 {[%emt 0:00:06]} 11. Qxd2 {[%emt 0:00:05]} a5 {[%emt 0:00:22]} 12. Qc3 {[%emt 0:10:33]} d6 {[%emt 0:20:19]} 13. c5 {[%emt 0:02:40]} Bd7 {[%emt 0:00:57]} 14. Rfd1 {[%emt 0:04:45]} Bc6 {[%emt 0:00:28]} 15. cxd6 {[%emt 0:11:38]} cxd6 {[%emt 0:00:11]} 16. Qd4 {[%emt 0:01:17]} Rfd8 {[%emt 0:01:26]} 17. Rac1 {[%emt 0:03:10]} Qe6 {[%emt 0:05:04]} 18. Bg3 {[%emt 0:03:42]} f6 {[%emt 0:06:23]} 19. a3 {[%emt 0:03:27]} Kh8 {[%emt 0:18:36]} 20. b4 {[%emt 0:20:29]} axb4 {[%emt 0:01:57]} 21. axb4 {[%emt 0:00:17]} Ba4 {[%emt 0:00:21]} 22. Rd2 {[%emt 0:06:46]} Rac8 {[%emt 0:00:50]} 23. Rxc8 {[%emt 0:01:50]} Rxc8 {[%emt 0:00:13]} 24. h3 {[%emt 0:00:18]} b5 {[%emt 0:19:10]} 25. Qxd6 {[%emt 0:02:48]} Qxd6 {[%emt 0:00:05]} 26. Rxd6 {[%emt 0:00:03]} Nc6 {[%emt 0:00:07]} 27. Bg4 {[%emt 0:02:05]} Rc7 {[%emt 0:01:04]} 28. Rd3 {[%emt 0:03:14]} Ra7 {[%emt 0:02:35]} 29. Bf3 {[%emt 0:00:31]} Ne7 {[%emt 0:01:15]} 30. Rd8+ {[%emt 0:00:13]} 1-0

[Event "ROU-ch Open 2021"]
[Site "Iasi"]
[Date "2021.04.19"]
[Round "1.16"]
[White "Ghita, Vlad-Bogdan"]
[Black "Ghimpu, Samuel-Timotei"]
[Result "0-1"]
[ECO "B54"]
[WhiteElo "1823"]
[BlackElo "2315"]
[Annotator "ChessBase"]
[PlyCount "84"]
[EventDate "2021.04.19"]
[EventType "swiss"]
[EventCountry "ROU"]
[SourceTitle "playchess.com"]
[Source "ChessBase"]
[SourceQuality "1"]
[TimeControl "5400+30"]

1. e4 {[%emt 0:00:00]} c5 {[%emt 0:01:52]} 2. Nf3 {[%emt 0:00:24]} a6 {[%emt 0:00:54]} 3. c4 {[%emt 0:00:41]} d6 {[%emt 0:10:02]} 4. d4 {[%emt 0:01:04]} cxd4 {[%emt 0:00:39]} 5. Nxd4 {[%emt 0:00:06]} Nf6 {[%emt 0:00:09]} 6. Nc3 {[%emt 0:00:04]} b6 {[%emt 0:03:10]} 7. Be2 {[%emt 0:03:28]} Bb7 {[%emt 0:00:52]} 8. Qd3 {[%emt 0:01:11]} Nbd7 {[%emt 0:00:19]} 9. f3 {[%emt 0:01:35]} Rc8 {[%emt 0:00:48]} 10. b3 {[%emt 0:00:34]} e6 {[%emt 0:03:48]} 11. O-O {[%emt 0:01:39]} Be7 {[%emt 0:00:32]} 12. Rd1 {[%emt 0:01:08]} O-O {[%emt 0:00:32]} 13. Be3 {[%emt 0:01:39]} Qc7 {[%emt 0:02:00]} 14. Rac1 {[%emt 0:00:39]} Qb8 {[%emt 0:00:08]} 15. Qd2 {[%emt 0:01:49]} Bd8 {[%emt 0:00:13]} 16. Bd3 {[%emt 0:00:36]} Bc7 {[%emt 0:00:55]} 17. g4 {[%emt 0:03:28]} Rfe8 {[%emt 0:11:07]} 18. g5 {[%emt 0:05:54]} Nh5 {[%emt 0:00:39]} 19. Rf1 {[%emt 0:03:31]} Ne5 {[%emt 0:27:08]} 20. Bb1 {[%emt 0:01:43]} Ng6 {[%emt 0:04:03]} 21. Rce1 {[%emt 0:02:44]} b5 {[%emt 0:02:37]} 22. cxb5 {[%emt 0:03:02]} Ba5 {[%emt 0:00:23]} 23. Rc1 {[%emt 0:01:07]} axb5 {[%emt 0:02:22]} 24. Ndxb5 {[%emt 0:01:23]} Ba6 {[%emt 0:01:58]} 25. a4 {[%emt 0:02:42]} Bxb5 {[%emt 0:01:17]} 26. axb5 {[%emt 0:00:02]} Qc7 {[%emt 0:07:45]} 27. f4 {[%emt 0:03:41]} Bxc3 {[%emt 0:00:21]} 28. Qd1 {[%emt 0:03:08]} Nhxf4 {[%emt 0:00:24]} 29. Kh1 {[%emt 0:01:41]} e5 {[%emt 0:00:36]} 30. Bxf4 {[%emt 0:02:26]} Nxf4 {[%emt 0:00:21]} 31. Rf3 {[%emt 0:00:02]} Qa5 {[%emt 0:03:40]} 32. Qc2 {[%emt 0:00:40]} Qa8 {[%emt 0:00:22]} 33. Rxc3 {[%emt 0:00:52]} Rxc3 {[%emt 0:00:07]} 34. Qxc3 {[%emt 0:00:02]} Ne2 {[%emt 0:00:05]} 35. Qc4 {[%emt 0:00:58]} Nxc1 {[%emt 0:00:07]} 36. Qxc1 {[%emt 0:00:02]} Rc8 {[%emt 0:00:13]} 37. Qb2 {[%emt 0:00:59]} Qa5 {[%emt 0:02:52]} 38. Bd3 {[%emt 0:00:20]} Qe1+ {[%emt 0:01:24]} 39. Kg2 {[%emt 0:00:02]} Qe3 {[%emt 0:00:29]} 40. Qe2 {[%emt 0:01:23]} Qxg5+ {[%emt 0:00:04]} 41. Kh3 {[%emt 0:00:20]} Rc3 {[%emt 0:00:03]} 42. b6 h5 {[%emt 0:00:29]} 0-1

[Event "ROU-ch Open 2021"]
[Site "Iasi"]
[Date "2021.04.19"]
[Round "1.17"]
[White "Ognean, Mihnea-Ionut"]
[Black "Salcu, Laurentiu"]
[Result "1-0"]
[ECO "B56"]
[WhiteElo "2298"]
[BlackElo "1814"]
[Annotator "ChessBase"]
[PlyCount "73"]
[EventDate "2021.04.19"]
[EventType "swiss"]
[EventCountry "ROU"]
[SourceTitle "playchess.com"]
[Source "ChessBase"]
[SourceQuality "1"]
[TimeControl "5400+30"]

1. e4 {[%emt 0:00:00]} c5 {[%emt 0:00:00]} 2. Nf3 {[%emt 0:00:05]} d6 {[%emt 0:00:00]} 3. d4 {[%emt 0:00:16]} cxd4 {[%emt 0:00:05]} 4. Nxd4 {[%emt 0:00:05]} Nf6 {[%emt 0:00:09]} 5. Nc3 {[%emt 0:00:29]} e5 {[%emt 0:00:40]} 6. Bb5+ {[%emt 0:02:20]} Nbd7 {[%emt 0:03:13]} 7. Nf5 {[%emt 0:00:44]} a6 {[%emt 0:01:18]} 8. Bxd7+ {[%emt 0:03:38]} Qxd7 {[%emt 0:00:32]} 9. Ng3 {[%emt 0:03:34]} b5 {[%emt 0:10:49]} 10. Bg5 {[%emt 0:03:21]} b4 {[%emt 0:04:13]} 11. Nce2 {[%emt 0:02:33]} Bb7 {[%emt 0:04:57]} 12. Bxf6 {[%emt 0:01:56]} gxf6 {[%emt 0:00:10]} 13. Qd3 {[%emt 0:10:01]} d5 {[%emt 0:04:28]} 14. Nh5 {[%emt 0:05:27]} Be7 {[%emt 0:03:46]} 15. Ng7+ {[%emt 0:01:30]} Kf8 {[%emt 0:02:10]} 16. Nf5 {[%emt 0:03:01]} Qe6 {[%emt 0:03:07]} 17. f3 {[%emt 0:13:27]} dxe4 {[%emt 0:03:31]} 18. fxe4 {[%emt 0:00:00]} Rd8 {[%emt 0:01:57]} 19. Qe3 {[%emt 0:03:43]} Qc6 {[%emt 0:06:40]} 20. Qh6+ {[%emt 0:09:07]} Ke8 {[%emt 0:00:20]} 21. Neg3 {[%emt 0:00:15]} Bf8 {[%emt 0:09:08]} 22. Qh4 {[%emt 0:22:15]} Qxc2 {[%emt 0:19:21]} 23. O-O {[%emt 0:00:00]} Rd2 {[%emt 0:00:16]} 24. Kh1 {[%emt 0:00:00]} Rxg2 {[%emt 0:03:54]} 25. Ne3 {[%emt 0:00:00]} Rxh2+ {[%emt 0:03:40]} 26. Qxh2 {[%emt 0:00:00]} Bxe4+ {[%emt 0:00:14]} 27. Nxe4 {[%emt 0:00:00]} Qxe4+ {[%emt 0:00:15]} 28. Ng2 {[%emt 0:00:00]} Rg8 {[%emt 0:04:31]} 29. Rae1 {[%emt 0:03:19]} Qc6 {[%emt 0:00:00]} 30. Rc1 {[%emt 0:00:00]} Bc5 {[%emt 0:02:45]} 31. Rc2 {[%emt 0:00:00]} Rg5 {[%emt 0:01:43]} 32. Rfc1 {[%emt 0:01:02]} e4 {[%emt 0:03:52]} 33. Ne3 {[%emt 0:03:46]} Qb5 {[%emt 0:00:00]} 34. Ng4 {[%emt 0:07:14]} e3 {[%emt 0:02:30]} 35. Nxf6+ {[%emt 0:02:56]} Ke7 {[%emt 0:01:51]} 36. Ne4 {[%emt 0:00:00]} Qc6 {[%emt 0:00:52]} 37. Qh4 {[%emt 0:00:00]} 1-0